bitfinex-derivatives/quotes_SOLF0:USTF0_20241103
["timestamp","ask_amount","ask_price","bid_price","bid_amount"]
[1730642330657,22.54,161.45,161.29,7.9572]
[1730642330860,3.0995,161.37,161.32,3.1003]
[1730642331064,22.54,161.45,161.29,7.9572]
[1730642331065,3.92,161.4,161.29,7.9572]
[1730642331557,3.0994,161.38,161.33,3.1002]
[1730642331744,3.92,161.4,161.33,3.1002]
[1730642332462,3.92,161.4,161.29,7.9572]
[1730642332463,3.92,161.4,161.29,4.0372]
[1730642333556,3.0999,161.36,161.31,3.1005]
[1730642333958,3.0999,161.36,161.29,4.0372]
[1730642334461,3.92,161.4,161.32,3.1004]
[1730642334659,3.92,161.4,161.29,4.0372]
[1730642335549,3.92,161.4,161.3,3.1008]
[1730642335964,18.62,161.39,161.16,100.69484007]
[1730642336150,25.41777155,161.39,161.23,3.1022]
[1730642336549,3.1018,161.26,161.21,3.1024]
[1730642336750,3.1018,161.26,161.19,5.79262224]
[1730642336751,3.92,161.31,161.19,5.79262224]
[1730642337277,3.1012,161.29,161.19,5.79262224]
[1730642337767,3.1012,161.29,161.23,3.1021]
[1730642338258,3.1012,161.29,161.19,5.79262224]
[1730642338461,3.1012,161.29,161.24,3.102]
[1730642341568,3.1012,161.28,161.24,3.102]
[1730642341960,3.1015,161.27,161.22,3.1022]
[1730642342465,3.1016,161.26,161.21,3.1025]
[1730642342660,3.92,161.31,161.19,6.4199]
[1730642343060,3.92,161.31,161.19,2.6599]
[1730642343670,3.1019,161.25,161.2,3.1027]
[1730642345355,3.1022,161.23,161.19,5.7629]
[1730642345769,22.3082,161.3,161.19,2.6599]
[1730642346075,3.6882,161.3,161.19,2.6599]
[1730642346270,3.78,161.29,161.19,2.6599]
[1730642346963,3.78,161.29,161.2,3.1027]
[1730642347570,3.102,161.24,161.2,3.1027]
[1730642348667,18.62,161.29,161.1,1.2695]
[1730642348863,18.62,161.27,161.11,6.4625]
[1730642349565,3.07691535,161.26,161.11,6.4625]
[1730642349881,3.1025,161.22,161.11,5.7868]
[1730642350068,3.07691535,161.26,161.11,2.6825]
[1730642350069,6.3875,161.21,161.11,2.6825]
[1730642350366,3.78,161.2,161.11,2.6825]
[1730642350572,3.1035,161.17,161.11,2.6825]
[1730642351564,3.1035,161.17,161.12,3.1042]
[1730642351774,3.1035,161.17,161.11,2.6825]
[1730642353365,3.1035,161.17,161.13,3.1041]
[1730642353978,3.1036,161.16,161.12,3.1043]
[1730642355072,3.1033,161.18,161.14,3.1038]
[1730642356565,3.1033,161.18,161.13,3.1041]
[1730642356779,3.1034,161.17,161.13,3.1041]
[1730642356964,3.78,161.2,161.11,2.6825]
[1730642357165,3.78,161.2,161.12,3.1042]
[1730642357375,3.1035,161.17,161.12,3.1042]
[1730642357569,3.78,161.2,161.12,3.1042]
[1730642357972,3.1033,161.18,161.13,3.104]
[1730642358279,3.1033,161.18,161.11,2.6825]
[1730642358473,3.1033,161.18,161.13,3.104]
[1730642358781,3.78,161.2,161.1,1.2695]
[1730642359169,3.1039,161.15,161.1,4.3742]
[1730642359477,3.78,161.2,161.1,4.3742]
[1730642359776,3.78,161.2,161.07,35.95978621]
[1730642359777,3.104,161.14,161.09,3.1049]
[1730642359970,3.104,161.14,161.07,35.95978621]
[1730642360469,3.104,161.14,161.09,3.1048]
[1730642360669,3.1043,161.13,161.06,4.0376]
[1730642360980,22.4,161.2,161.06,4.0376]
[1730642361481,22.4,161.2,161.08,3.1049]
[1730642361882,22.4,161.2,161.06,4.0376]
[1730642362086,22.4,161.2,161.07,3.1052]
[1730642362580,3.1044,161.12,161.07,3.1052]
[1730642362969,3.78,161.14,161.01,3.78]
[1730642363365,3.78,161.14,160.98,2.6485]
[1730642363569,3.1052,161.08,161.03,3.1059]
[1730642363977,3.1052,161.08,160.99,3.78]
[1730642364171,3.1052,161.08,161.03,3.106]
[1730642364568,3.1052,161.08,161.01,3.1063]
[1730642364771,3.1052,161.08,160.99,3.78]
[1730642364975,1.3489,161.13,160.99,3.78]
[1730642365190,3.1056,161.06,161.02,3.1061]
[1730642365481,3.78,161.09,160.99,3.78]
[1730642366180,3.105,161.09,161.05,3.1055]
[1730642366391,3.78,161.13,161.0,3.04760468]
[1730642366773,3.1052,161.08,161.04,3.1057]
[1730642367176,3.1046,161.11,161.04,3.1057]
[1730642367482,3.78,161.13,161.0,3.04760468]
[1730642367686,3.78,161.13,160.99,3.78]
[1730642367687,3.78,161.13,161.01,1.1409953]
[1730642367881,3.1047,161.1,161.06,3.1053]
[1730642371180,3.78,161.13,161.02,1.316]
[1730642371388,3.78,161.13,161.05,3.1055]
[1730642372080,3.105,161.09,161.02,1.316]
[1730642372471,3.1048,161.1,161.02,1.316]
[1730642372676,3.1048,161.1,161.06,3.1054]
[1730642373184,3.58,161.12,161.06,3.1054]
[1730642373380,3.58,161.12,161.05,3.1056]
[1730642374598,3.1048,161.1,161.05,3.1056]
[1730642374788,3.58,161.12,161.04,3.1058]
[1730642375087,3.1048,161.1,161.04,3.1058]
[1730642375287,3.58,161.12,161.04,3.1058]
[1730642376090,3.105,161.09,161.05,3.1057]
[1730642376288,3.105,161.09,161.02,1.316]
[1730642376589,3.58,161.12,161.05,3.1056]
[1730642376784,3.58,161.12,161.02,1.316]
[1730642377491,3.1045,161.11,161.07,3.1052]
[1730642378994,0.9881,161.16,161.02,1.316]
[1730642379193,3.58,161.15,161.02,1.316]
[1730642379490,3.1045,161.12,161.07,3.1051]
[1730642380194,21.224,161.2,161.02,1.316]
[1730642380383,3.58,161.19,161.02,1.316]
[1730642380585,3.1042,161.13,161.02,1.316]
[1730642380786,3.1042,161.13,161.08,3.105]
[1730642381694,3.58,161.14,161.02,1.316]
[1730642381896,3.58,161.14,161.02,4.896]
[1730642382386,3.58,161.14,161.04,3.1057]
[1730642382587,3.58,161.14,161.02,1.316]
[1730642382787,3.1056,161.06,161.02,4.4222]
[1730642382987,3.58,161.09,161.02,1.316]
[1730642384200,3.1054,161.07,161.02,4.4222]
[1730642384497,3.58,161.09,161.02,4.4222]
[1730642385197,3.58,161.09,161.04,3.1058]
[1730642385390,3.58,161.09,161.02,1.316]
[1730642385585,3.1052,161.08,161.02,1.316]
[1730642385787,3.1052,161.08,161.03,3.1059]
[1730642386698,3.1053,161.07,161.03,3.1059]
[1730642388802,3.58,161.09,161.03,3.1059]
[1730642389102,3.1051,161.08,161.02,1.316]
[1730642389300,3.58,161.09,161.02,1.316]
[1730642389605,3.58,161.09,161.02,4.4222]
[1730642389902,3.58,161.09,160.98,6.2285]
[1730642390199,3.1057,161.06,160.98,6.2285]
[1730642390699,3.58,161.09,161.01,3.1063]
[1730642390903,3.1057,161.05,161.01,3.1063]
[1730642393595,3.106,161.04,161.01,3.1063]
[1730642393999,3.58,161.09,160.98,6.2285]
[1730642394201,3.1062,161.03,161.0,3.1066]
[1730642396397,3.1062,161.03,161.01,3.1064]
[1730642396804,3.1062,161.03,160.98,2.6485]
[1730642397308,3.1062,161.03,160.99,3.1067]
[1730642397506,3.1062,161.03,160.98,2.6485]
[1730642398105,3.1062,161.03,161.0,3.1066]
[1730642398801,3.58,161.08,161.01,3.1063]
[1730642399009,3.58,161.08,160.98,2.6485]
[1730642399607,3.1058,161.05,161.01,3.1063]
[1730642400405,2.6219,161.13,161.0,3.17312142]
[1730642400606,3.46,161.12,160.98,2.6485]
[1730642400997,3.1051,161.08,160.98,2.6485]
[1730642401200,3.46,161.12,161.04,3.1059]
[1730642401395,3.1052,161.08,161.04,3.1059]
[1730642401911,22.08,161.12,160.98,6.1085]
[1730642402106,3.46,161.12,160.98,6.1085]
[1730642402416,3.46,161.12,161.06,3.1054]
[1730642403105,3.46,161.12,161.02,3.10978759]
[1730642403405,3.46,161.12,161.03,1.3767]
[1730642403607,3.1051,161.09,161.03,1.3767]
[1730642403806,3.46,161.12,160.98,6.1085]
[1730642404008,3.1052,161.08,161.03,3.106]
[1730642404310,3.46,161.12,161.03,3.106]
[1730642404510,3.1058,161.05,161.01,3.1064]
[1730642404811,3.46,161.12,160.99,1.3767]
[1730642405006,3.46,161.12,161.0,3.17933469]
[1730642405210,3.46,161.12,160.99,1.3767]
[1730642405400,19.6092,161.11,160.99,1.3767]
[1730642405813,3.106,161.04,161.0,3.1066]
[1730642406208,3.1065,161.01,160.96,3.1073]
[1730642406405,22.08,161.07,160.92,4.0082]
[1730642406605,2.6344,161.06,160.92,11.2682]
[1730642406910,2.6344,161.06,160.92,7.8082]
[1730642407414,2.6344,161.06,160.94,3.1077]
[1730642407721,2.6344,161.06,160.92,7.8082]
[1730642407902,3.1068,160.99,160.94,3.1076]
[1730642409613,3.46,161.02,160.95,3.1076]
[1730642410113,3.1067,161.0,160.95,3.1076]
[1730642410317,3.46,161.02,160.92,7.8082]
[1730642410811,6.0944,161.06,160.96,3.1072]
[1730642411013,6.0944,161.06,160.92,7.8082]
[1730642411419,3.1062,161.03,160.98,3.1068]
[1730642412507,3.1062,161.03,160.98,5.7768]
[1730642412822,3.1061,161.03,160.99,3.1067]
[1730642413922,0.9892,161.11,161.0,3.08589971]
[1730642414111,4.4492,161.11,160.99,3.9582]
[1730642414428,3.46,161.11,161.0,3.05296853]
[1730642414721,3.1052,161.08,161.01,3.1063]
[1730642414927,3.46,161.11,160.99,3.9582]
[1730642415307,3.1063,161.02,160.98,7.63]
[1730642415508,1.2779,161.1,160.98,7.63]
[1730642415509,3.46,161.06,160.98,7.63]
[1730642416017,3.1063,161.02,160.98,10.737]
[1730642416326,3.1063,161.02,160.98,7.63]
[1730642417019,3.1059,161.04,160.98,7.63]
[1730642417221,3.46,161.06,160.98,7.63]
[1730642417424,1.3618,161.05,160.98,7.63]
[1730642417730,1.3618,161.05,160.98,6.6397]
[1730642418923,3.1068,160.99,160.98,6.6397]
[1730642419126,6.5668,160.99,160.98,2.4165]
[1730642423918,3.1075,160.96,160.92,1.0]
[1730642424119,3.46,160.99,160.92,1.0]
[1730642424426,3.107,160.99,160.92,1.0]
[1730642424628,60.80831279,161.02,160.92,1.0]
[1730642424943,64.26831279,161.02,160.92,4.46]
[1730642425132,3.1064,161.01,160.96,3.1073]
[1730642426320,3.1064,161.01,160.97,2.77]
[1730642426521,60.80831279,161.02,160.98,3.1068]
[1730642426730,60.80831279,161.02,160.97,2.77]
[1730642427225,3.107,160.98,160.97,2.77]
[1730642427729,6.567,160.98,160.97,2.77]
[1730642429318,64.26831279,161.02,160.97,2.77]
[1730642430032,3.107,160.98,160.97,2.77]
[1730642430832,6.5868,161.0,160.97,2.77]
[1730642431128,3.48,161.0,160.97,2.77]
[1730642431322,3.107,160.98,160.97,2.77]
[1730642437436,3.48,161.0,160.92,4.34]
[1730642438229,3.48,161.0,160.92,5.34]
[1730642438431,3.108,160.93,160.92,5.34]
[1730642438841,3.108,160.93,160.92,1.0]
[1730642439237,3.1078,160.94,160.92,1.0]
[1730642440344,3.48,160.95,160.92,1.0]
[1730642440644,3.108,160.93,160.92,1.0]
[1730642441234,3.1078,160.94,160.92,1.0]
[1730642441831,3.108,160.93,160.92,1.0]
[1730642442028,3.48,160.95,160.92,1.0]
[1730642442441,6.5878,160.95,160.92,1.0]
[1730642443133,3.1078,160.94,160.92,1.0]
[1730642443734,3.48,160.95,160.92,1.0]
[1730642443941,3.108,160.93,160.92,1.0]
[1730642444346,3.48,160.95,160.92,1.0]
[1730642445238,3.48,160.97,160.92,1.0]
[1730642446539,3.1076,160.95,160.92,1.0]
[1730642449037,3.1077,160.95,160.92,1.0]
[1730642449349,3.48,160.98,160.92,1.0]
[1730642449549,3.48,161.0,160.93,2.6719]
[1730642449751,3.48,161.01,160.93,2.6719]
[1730642449952,60.80831279,161.02,160.94,1.3539]
[1730642450638,3.1066,161.01,160.96,3.1073]
[1730642452657,3.48,161.04,160.97,3.1071]
[1730642452860,3.48,161.04,160.94,1.3539]
[1730642453653,3.1064,161.01,160.94,1.3539]
[1730642453866,3.48,161.04,160.94,2.3539]
[1730642454344,3.48,161.04,160.94,5.4616]
[1730642454745,3.48,161.04,160.94,2.3539]
[1730642454961,3.1066,161.01,160.96,3.1074]
[1730642455550,3.1066,161.0,160.97,2.77]
[1730642456153,3.48,161.02,160.97,2.77]
[1730642457053,3.107,160.98,160.97,2.77]
[1730642467656,3.1074,160.96,160.95,4.25]
[1730642467862,25.1274,160.96,160.95,0.7238]
[1730642468270,22.02,160.96,160.94,1.0]
[1730642468457,3.1076,160.95,160.94,1.0]
[1730642468859,22.02,160.96,160.81,2.6517]
[1730642469064,3.1101,160.83,160.81,2.6517]
[1730642469375,3.4,160.86,160.81,2.6517]
[1730642469984,3.11,160.83,160.81,2.6517]
[1730642471175,3.4,160.86,160.81,2.6517]
[1730642471371,3.1101,160.82,160.81,2.6517]
[1730642472480,3.4,160.86,160.81,2.6517]
[1730642472676,3.1099,160.83,160.81,2.6517]
[1730642473673,22.02,160.86,160.75,3.1114]
[1730642473984,22.02,160.86,160.75,3.9269]
[1730642474672,3.1103,160.82,160.76,3.1112]
[1730642474878,3.4,160.81,160.75,3.9269]
[1730642475282,3.4,160.81,160.77,3.1109]
[1730642475582,3.4,160.81,160.75,3.9269]
[1730642475978,6.5104,160.81,160.75,7.0382]
[1730642476182,6.5104,160.81,160.75,3.9269]
[1730642476577,3.4,160.81,160.75,3.9269]
[1730642477273,3.4,160.81,160.76,3.1111]
[1730642477491,3.4,160.81,160.75,3.9269]
[1730642477987,6.5104,160.81,160.76,3.1112]
[1730642478379,3.4,160.81,160.75,3.9269]
[1730642478985,3.1107,160.79,160.75,3.9269]
[1730642479483,3.1105,160.8,160.75,7.0384]
[1730642479983,3.1105,160.8,160.75,3.9269]
[1730642480291,3.1109,160.79,160.75,3.9269]
[1730642480493,3.4,160.81,160.75,3.9269]
[1730642481283,3.1108,160.79,160.75,3.9269]
[1730642481480,3.4,160.81,160.75,3.9269]
[1730642481673,3.4,160.81,160.75,2.6463]
[1730642481874,3.1113,160.76,160.75,2.6463]
[1730642482080,22.06,160.81,160.72,4.35]
[1730642482386,3.1116,160.75,160.69,5.8188]
[1730642482595,3.4,160.76,160.69,2.7063]
[1730642483791,3.1116,160.75,160.69,5.8189]
[1730642483987,3.4,160.76,160.69,2.7063]
[1730642485279,3.1118,160.74,160.69,2.7063]
[1730642485486,3.4,160.76,160.69,2.7063]
[1730642486393,3.1118,160.73,160.69,2.7063]
[1730642486990,3.1122,160.72,160.69,2.7063]
[1730642487192,3.4,160.76,160.69,2.7063]
[1730642488295,3.1117,160.74,160.69,7.0563]
[1730642489085,3.4,160.76,160.69,7.0563]
[1730642489992,3.1117,160.74,160.69,7.0563]
[1730642490492,3.1122,160.72,160.69,7.0563]
[1730642490693,60.93795299,160.79,160.69,7.0563]
[1730642490900,3.4,160.78,160.69,2.7063]
[1730642491082,60.93795299,160.79,160.69,2.7063]
[1730642491682,60.93795299,160.79,160.69,7.0563]
[1730642492805,3.4,160.78,160.69,7.0563]
[1730642494892,3.1116,160.75,160.69,10.1688]
[1730642495199,3.1116,160.75,160.69,7.0563]
[1730642495398,3.1117,160.74,160.69,10.1687]
[1730642495987,3.1119,160.73,160.69,7.0563]
[1730642496181,3.4,160.78,160.69,7.0563]
[1730642496483,60.93795299,160.79,160.75,3.1113]
[1730642496687,60.93795299,160.79,160.76,2.5683]
[1730642499298,3.1109,160.78,160.76,2.5683]
[1730642499502,60.93795299,160.79,160.76,2.5683]
[1730642499904,3.1111,160.77,160.76,2.5683]
[1730642500198,60.93795299,160.79,160.76,2.5683]
[1730642500406,64.04875299,160.79,160.76,2.5683]
[1730642500607,8.4012458,160.91,160.76,2.5683]
[1730642500908,3.4,160.9,160.77,1.2875]
[1730642501208,1.03505728,160.9,160.77,1.2875]
[1730642501417,3.4,160.89,160.78,3.1107]
[1730642501702,44.78,160.92,160.77,1.2875]
[1730642501703,3.4,160.88,160.77,1.2875]
[1730642501905,3.1093,160.86,160.8,3.1104]
[1730642502292,44.78,160.92,160.77,1.2875]
[1730642502492,3.4,160.91,160.77,1.2875]
[1730642503121,3.1099,160.83,160.77,1.2875]
[1730642504313,3.1099,160.83,160.78,3.1109]
[1730642505114,6.5097,160.85,160.8,3.1104]
[1730642505412,3.4,160.85,160.77,1.2875]
[1730642506205,3.109,160.88,160.79,3.1107]
[1730642506406,31.0223,161.24,160.77,1.2875]
[1730642506407,8.4012458,161.01,160.77,1.2875]
[1730642506705,3.4,160.95,160.77,1.2875]
[1730642506906,3.1087,160.9,160.85,3.1094]
[1730642507104,3.1087,160.9,160.86,4.0898]
[1730642507414,3.4,160.95,160.86,4.0898]
[1730642507817,3.1081,160.93,160.86,4.0898]
[1730642508118,3.4,160.95,160.86,4.0898]
[1730642508506,3.1087,160.9,160.87,4.35]
[1730642508911,3.4,160.94,160.87,4.35]
[1730642509113,3.1082,160.92,160.87,7.4591]
[1730642509415,3.4,160.94,160.87,4.35]
[1730642509605,60.87391015,160.97,160.87,4.35]
[1730642510017,3.1068,161.0,160.93,3.1078]
[1730642510217,3.4,161.03,160.94,2.5438]
[1730642510411,3.4,161.03,160.94,3.9176]
[1730642510721,3.1077,160.95,160.88,4.4827]
[1730642510904,3.4,160.98,160.88,7.0265]
[1730642511104,18.66,161.05,160.88,7.0265]
[1730642511105,3.4,160.97,160.88,3.9176]
[1730642511305,3.4,160.99,160.88,3.9176]
[1730642511721,3.1073,160.97,160.91,3.1082]
[1730642512220,3.4,160.99,160.88,3.9176]
[1730642512401,3.1075,160.96,160.89,3.1086]
[1730642512812,3.1075,160.96,160.88,3.9176]
[1730642513217,3.1077,160.95,160.88,7.0264]
[1730642513417,3.4,161.0,160.88,3.9176]
[1730642513919,3.108,160.93,160.88,3.9176]
[1730642515717,3.1076,160.95,160.89,3.1086]
[1730642516105,3.4,160.97,160.89,3.1086]
[1730642516306,3.1078,160.94,160.89,3.1086]
[1730642518119,3.4,160.99,160.89,3.1086]
[1730642518319,3.1077,160.95,160.9,3.1085]
[1730642519624,3.4,160.99,160.88,7.0264]
[1730642519827,3.4,160.99,160.88,3.9176]
[1730642520121,3.1078,160.95,160.88,3.9176]
[1730642520324,3.4,160.99,160.89,3.1086]
[1730642520628,3.1075,160.96,160.88,3.9176]
[1730642520829,3.4,160.99,160.9,3.1085]
[1730642521920,3.4,160.99,160.88,3.9176]
[1730642522121,22.06,160.99,160.88,2.5438]
[1730642522620,22.06,160.99,160.87,4.35]
[1730642523134,3.1088,160.89,160.87,4.35]
[1730642523625,3.4,160.92,160.87,4.35]
[1730642523815,3.1089,160.88,160.87,4.35]
[1730642526634,3.1089,160.88,160.65,614.76]
[1730642526635,3.11,160.83,160.75,3.4]
[1730642526823,3.11,160.83,160.77,3.1109]
[1730642527215,3.1101,160.82,160.78,4.35]
[1730642527419,3.4,160.85,160.78,4.35]
[1730642528234,3.1101,160.82,160.78,4.35]
[1730642528424,3.4,160.85,160.78,4.35]
[1730642528835,3.1105,160.8,160.78,4.35]
[1730642529023,3.4,160.85,160.78,4.35]
[1730642529436,3.1103,160.82,160.78,4.35]
[1730642529735,3.4,160.85,160.78,4.35]
[1730642530816,3.1107,160.79,160.78,4.35]
[1730642532728,3.4,160.8,160.78,4.35]
[1730642532932,60.90872128,160.88,160.78,4.35]
[1730642533237,3.4,160.87,160.78,4.35]
[1730642533535,60.90872128,160.88,160.78,4.35]
[1730642533536,3.4,160.86,160.78,4.35]
[1730642533735,60.90872128,160.88,160.79,2.686]
[1730642533927,3.4,160.87,160.79,2.686]
[1730642534226,3.4,160.87,160.8,1.3198]
[1730642535234,3.1095,160.85,160.8,1.3198]
[1730642535946,64.30872128,160.88,160.8,1.3198]
[1730642536432,3.1091,160.87,160.8,1.3198]
[1730642536841,3.1091,160.87,160.81,3.1101]
[1730642537547,3.1091,160.87,160.82,3.11]
[1730642538130,64.30872128,160.88,160.8,1.3198]
[1730642539236,3.1099,160.84,160.8,1.3198]
[1730642540241,3.1094,160.86,160.8,1.3198]
[1730642540544,64.30872128,160.88,160.8,1.3198]
[1730642540933,60.90872128,160.88,160.8,1.3198]
[1730642541243,60.90872128,160.88,160.82,3.11]
[1730642541744,60.90872128,160.88,160.8,1.3198]
[1730642542540,60.90872128,160.88,160.85,3.1095]
[1730642542740,60.90872128,160.88,160.8,1.3198]
[1730642542938,60.90872128,160.88,160.84,3.1097]
[1730642543139,18.66,161.0,160.82,3.18576982]
[1730642543333,63.44,161.02,160.89,3.1087]
[1730642543534,63.44,161.02,160.87,3.06322825]
[1730642543535,3.4,160.97,160.87,3.06322825]
[1730642543736,3.1074,160.97,160.88,7.412]
[1730642544043,3.4,161.01,160.89,3.4]
[1730642544243,3.1062,161.03,160.89,3.4]
[1730642544446,8.40077385,161.11,160.89,3.4]
[1730642544641,4.43819423,161.1,160.89,3.4]
[1730642544844,67.17718109,161.13,160.89,3.4]
[1730642544845,3.1056,161.06,160.89,3.4]
[1730642545031,3.4,161.08,160.89,3.4]
[1730642545233,44.78,161.13,160.89,3.4]
[1730642545432,3.1053,161.08,161.02,3.1061]
[1730642545638,3.1053,161.08,161.03,4.012]
[1730642546047,3.1053,161.07,161.03,4.012]
[1730642546636,3.1051,161.09,161.04,3.1058]
[1730642546837,3.4,161.12,161.03,4.012]
[1730642547044,3.4,161.16,161.03,4.012]
[1730642547247,3.1046,161.11,161.06,3.1054]
[1730642547446,3.1046,161.11,161.03,4.012]
[1730642547646,3.4,161.16,161.03,7.412]
[1730642548239,3.4,161.15,161.03,7.412]
[1730642548545,3.1045,161.11,161.04,3.1057]
[1730642548735,3.4,161.15,161.03,7.412]
[1730642549132,3.1045,161.12,161.06,3.1053]
[1730642549348,3.4,161.15,161.04,4.34]
[1730642549540,60.79501711,161.21,161.04,4.34]
[1730642549541,3.4,161.18,161.04,4.34]
[1730642549747,3.104,161.14,161.04,4.34]
[1730642549942,60.79501711,161.21,161.04,4.34]
[1730642550140,3.4,161.19,161.04,4.34]
[1730642550346,60.79501711,161.21,161.04,4.34]
[1730642550751,3.1027,161.21,161.15,3.1036]
[1730642550954,3.1027,161.21,161.16,7.4203]
[1730642551140,56.03051149,161.25,161.16,7.4203]
[1730642551551,3.52,161.24,161.04,4.34]
[1730642551748,3.52,161.24,161.05,3.9003]
[1730642551950,3.52,161.24,161.06,3.52]
[1730642552750,59.55051149,161.25,161.06,3.52]
[1730642553157,3.1031,161.19,161.14,3.1039]
[1730642553454,59.55051149,161.25,161.13,3.52]
[1730642553758,59.55051149,161.25,161.14,4.8884]
[1730642553948,59.55051149,161.25,161.15,6.1655]
[1730642554139,3.1025,161.22,161.16,3.1034]
[1730642554341,56.03051149,161.25,161.15,6.1655]
[1730642554654,3.1032,161.18,161.15,6.1655]
[1730642554849,56.03051149,161.25,161.15,6.1655]
[1730642555847,60.75154269,161.32,161.15,6.1655]
[1730642556047,3.52,161.3,161.15,6.1655]
[1730642556244,3.1026,161.22,161.17,3.1032]
[1730642556447,3.52,161.3,161.17,3.1032]
[1730642557854,3.1022,161.24,161.15,2.6455]
[1730642558153,3.52,161.3,161.16,3.52]
[1730642558458,3.1017,161.26,161.19,3.1029]
[1730642558854,3.1017,161.26,161.19,6.6229]
[1730642559249,3.52,161.3,161.19,6.6229]
[1730642560660,3.52,161.3,161.19,3.52]
[1730642560960,3.52,161.3,161.15,2.6455]
[1730642561149,3.1029,161.2,161.15,2.6455]
[1730642561355,3.52,161.24,161.15,2.6455]
[1730642561550,3.52,161.24,161.09,35.95413081]
[1730642561757,3.52,161.24,161.1,6.2204]
[1730642562562,3.52,161.24,161.1,2.7004]
[1730642562750,3.1036,161.16,161.1,2.7004]
[1730642563066,3.1036,161.16,161.1,7.0404]
[1730642563751,3.52,161.24,161.1,7.0404]
[1730642564065,3.52,161.23,161.1,7.0404]
[1730642564267,3.1039,161.15,161.1,7.0404]
[1730642565759,18.66,161.22,161.1,7.0404]
[1730642566363,3.1042,161.13,161.1,7.0404]
[1730642566551,3.52,161.17,161.1,4.34]
[1730642568068,3.1045,161.11,161.1,4.34]
[1730642570757,6.2018,161.3,161.13,3.1039]
[1730642570960,4.55773493,161.29,161.1,4.34]
[1730642571154,3.1041,161.13,161.1,4.34]
[1730642571363,3.52,161.18,161.1,4.34]
[1730642571562,3.52,161.17,161.1,4.34]
[1730642572261,3.1036,161.16,161.1,4.34]
[1730642572466,3.52,161.17,161.1,4.34]
[1730642572858,3.1041,161.14,161.1,4.34]
[1730642574067,3.52,161.17,161.1,4.34]
[1730642574261,3.1038,161.15,161.1,4.34]
[1730642576461,3.1039,161.15,161.1,4.34]
[1730642576868,3.52,161.18,161.1,4.34]
[1730642577058,3.1045,161.11,161.1,4.34]
[1730642577966,6.6245,161.11,161.1,4.34]
[1730642579860,3.1054,161.07,161.01,2.593]
[1730642580261,3.52,161.11,161.01,2.593]
[1730642580580,3.1051,161.08,161.01,6.933]
[1730642580871,3.52,161.11,161.02,3.1061]
[1730642581172,3.52,161.11,161.01,6.933]
[1730642581173,3.1056,161.06,161.01,6.933]
[1730642581563,3.52,161.11,161.01,6.933]
[1730642581757,3.52,161.11,161.01,4.34]
[1730642582265,3.1051,161.08,161.01,4.34]
[1730642582668,3.1059,161.04,161.01,4.34]
[1730642584075,3.1054,161.07,161.01,7.4464]
[1730642584372,11.80461115,161.11,161.01,7.4464]